Cogmind - Beta 16 @@@ ROGUE MODE // 2026.01.04 @ 16:45:06 Player: Stibat Result: Core destroyed Performance ------------- Evolutions (1) 500 Regions Visited (2) 400 Robots Destroyed (25) 125 Value Destroyed (540) 540 Prototype IDs (0) 0 Alien Tech Used (0) 0 Bonus (0) 0 TOTAL SCORE: 1565 Bonus ------- None Cogmind --------- Core Integrity 0/400 Matter 300/300 Energy 100/100 System Corruption 0% Temperature Cool (0) Movement Core (50) Location -9/Materials Parts ------- > --- POWER (2) -------- (None) > --- PROPULSION (2) --- (None) > --- UTILITY (2) ------ Signal Interpreter Targeting Computer > --- WEAPON (3) ------- (None) > --- INVENTORY (5) ---- High-capacity Storage Unit Sensor Array Seismic Detector Peak State ------------ > --- POWER ------------ Ion Engine > --- PROPULSION ------- Light Treads Light Treads > --- UTILITY ---------- Signal Interpreter Targeting Computer > --- WEAPON ----------- EM Pulse Gun Plasma Cutter Hammer > --- INVENTORY -------- High-capacity Storage Unit Sensor Array Seismic Detector [Rating: 9] Favorites ----------- Power Ion Engine Engine Ion Engine Propulsion Light Treads Treads Light Treads Leg Aluminum Leg Wheel Wheel Hover Unit Hover Unit Flight Unit Flight Unit Utility Signal Interpreter Storage High-capacity Storage Unit Processor Signal Interpreter Weapon Grenade Launcher Energy Gun Medium Laser Ballistic Gun Light Assault Rifle Launcher Grenade Launcher Special Weapon Plasma Cutter Impact Weapon Hammer Build | -11 -10 -9 ------- Run | Yrd Mat Mat Slots Evolved 2 | . . 2 Power 1 | . . 1 Propulsion . | . . . Utility . | . . . Weapon 1 | . . 1 Parts Attached 25 | 6 19 . Power 3 | . 3 . Engine 3 | . 3 . Core . | . . . Reactor . | . . . Propulsion 11 | 4 7 . Treads 3 | . 3 . Leg 2 | 2 . . Wheel 2 | 2 . . Hover 2 | . 2 . Flight 2 | . 2 . Utility 5 | . 5 . Device . | . . . Storage 2 | . 2 . Processor 3 | . 3 . Hackware . | . . . Protection . | . . . Artifact . | . . . Weapon 6 | 2 4 . Energy Gun 2 | 1 1 . Energy Cannon . | . . . Ballistic Gun 1 | 1 . . Ballistic Cannon . | . . . Launcher 1 | . 1 . Special Weapon 1 | . 1 . Impact Weapon 1 | . 1 . Slashing Weapon . | . . . Piercing Weapon . | . . . Special Melee Weapon . | . . . Unidentified Prototypes . | . . . Parts Lost 6 | . 1 5 Power 2 | . 1 1 Propulsion 1 | . . 1 Utility . | . . . Weapon 3 | . . 3 Highest Loss Streak 3 | . 1 3 To Critical Strikes . | . . . Average Backups 3 | 3 4 3 Power . | . . . Propulsion . | 1 . . Utility 1 | . 1 3 Weapon 1 | 1 2 . Tool/Special . | . . . Unused Backups 7 | . 4 3 Power 1 | . 1 . Propulsion . | . . . Utility 3 | . . 3 Weapon 3 | . 3 . Tool/Special . | . . . Average Slot Usage (%) 90 | . 93 75 Engine 12 | . 12 9 Treads 20 | . 21 16 Hover 1 | . 2 . Flight 2 | . 2 . Processor 22 | . 22 22 Energy Gun 8 | . 8 7 Ballistic Gun 4 | . 5 . Launcher 7 | . 9 . Special Weapon 2 | . . 9 Impact Weapon 4 | . 2 10 Peak Build Rating 9 | 4 8 9 Average Rating 6 | 2 6 7 On Entrance 4 | . 4 8 Avg Prop Armor Cover (%) 9 | . 9 . Naked Turns . | . . . Heaviest Build 43 | 3 43 10 Greatest Support 40 | 20 40 40 Greatest Overweight (x) 2 | . 2 2 Average Overweight (x) . | . . . Largest Inventory Capacity 20 | 5 20 5 Average Capacity 5 | 5 5 5 Most Carried 5 | 5 5 3 Average Carried 3 | 3 4 3 Final Capacity 5 | 5 5 5 Final Carried 4 | 3 4 3 Class Distribution -------------------- 100% | Mutant Dominant Class ---------------- Mutant | -10/Materials Mutant | -9/Materials Resources | -11 -10 -9 ----------- Run | Yrd Mat Mat Matter Collected 505 | 269 216 20 Remotely . | . . . Salvage Created 642 | 46 436 160 Parts 51 | . 42 9 Haulers Intercepted 1 | . 1 . Recyclers Shooed . | . . . Parts Field Recycled . | . . . Retrieved Matter . | . . . Parts Self-Destructed . | . . . Prevented . | . . . Parts Restored . | . . . Kills | -11 -10 -9 ------- Run | Yrd Mat Mat Combat Hostiles Destroyed 19 | 1 15 3 Melee 1 | . 1 . Guns 8 | 1 4 3 AOE 8 | . 8 . Classes Destroyed 6 | 1 5 . Worker 1 | . 1 . Hauler 1 | . 1 . Operator 1 | . 1 . Watcher 3 | . 3 . Swarmer 9 | . 9 . Grunt 10 | 1 6 3 Best Kill Streak 6 | 1 6 2 Combat Bots Only 6 | 1 6 2 Max Kills in Single Turn 3 | 1 3 1 Gunslinging . | . . . Exploded 3 | . 3 . Melee 1 | . 1 . Uniques/NPCs Destroyed . | . . . Combat | -11 -10 -9 -------- Run | Yrd Mat Mat Hostile Shots Fired 156 | 9 55 92 Missed 47 | 3 20 24 Hits 109 | 6 35 68 Projectile 109 | 6 35 68 Critical Strikes 1 | . . 1 Damage Taken 1241 | 67 399 775 Core 481 | 22 59 400 Absorbed by Shields . | . . . Core Remaining (%) 79 | 91 67 . Volleys Fired 79 | 9 52 18 Largest 2 | 1 2 1 Hottest 60 | 20 60 40 Shots Fired 83 | 9 56 18 Gun 79 | 9 52 18 Cannon . | . . . Launcher 4 | . 4 . Special . | . . . Kinetic 33 | 9 24 . Thermal 24 | . 24 . Explosive 4 | . 4 . Electromagnetic 22 | . 4 18 Robot Hit Streak 11 | 6 11 4 Robot Miss Streak 5 | 2 5 3 Penetration Max . | . . . Secondary Targets . | . . . Shots Hit Robots 65 | 7 40 18 Core Hits 42 | 4 29 9 Critical Kills 1 | . 1 . Critical Parts Destroyed 3 | . 2 1 Critical Strikes 6 | . 5 1 Burn 2 | . 2 . Destroy 1 | . 1 . Smash 3 | . 2 1 Melee Attacks 17 | . 5 12 Impact 17 | . 5 12 Slashing . | . . . Piercing . | . . . Sneak Attacks 1 | . . 1 Combat Hostiles . | . . . Follow-up Attacks . | . . . Damage Inflicted 1365 | 57 885 423 Guns 568 | 57 354 157 Cannons . | . . . Explosions 404 | . 404 . Melee 369 | . 127 242 Ramming 24 | . . 24 Kinetic 179 | 57 122 . Thermal 214 | . 214 . Explosive 404 | . 404 . Electromagnetic 175 | . 18 157 Impact 369 | . 127 242 Slashing . | . . . Piercing . | . . . Highest Corruption . | . . . Average Corruption . | . . . Corruption Purged . | . . . Corruption Blocked . | . . . Overload Shots . | . . . Overflow Damage 94 | . 57 37 Projectiles . | . . . Explosions . | . . . Melee 94 | . 57 37 Knockbacks 1 | . 1 . Impact 1 | . 1 . Kinetic . | . . . Secondary . | . . . Self-Inflicted Damage 45 | . 34 11 Shots 2 | . 2 . Rammed 7 | . . 7 Targets Rammed 8 | . 1 7 Kicked . | . . . Crushed 1 | . 1 . Highest Temperature 80 | 1 80 15 Average Temperature 18 | 1 21 5 Received Heat Transfer 408 | 36 162 210 Siege Activations . | . . . Martial Activations . | . . . Shielding Activations . | . . . Robots Disrupted . | . . . Combat Hostiles . | . . . Robots Corrupted 1 | . 1 . Combat Hostiles 1 | . 1 . Parts Fried 1 | . 1 . Impact Corruptions 4 | . 3 1 Robots Melted 1 | . 1 . Combat Hostiles 1 | . 1 . Parts Melted 2 | . 2 . Heat Transferred 777 | . 777 . Parts Sabotaged . | . . . Parts Stolen . | . . . Parts Stripped . | . . . Power Chain Reactions . | . . . Alert | -11 -10 -9 ------- Run | Yrd Mat Mat Maximum Alert Level 1 | . 1 . Low Security (%) 91 | 100 88 100 Level 1 8 | . 11 . Level 2 . | . . . Level 3 . | . . . Level 4 . | . . . Level 5 . | . . . High Security . | . . . Max Security . | . . . Peak Influence 233 | 20 233 60 Initial 33 | . . 33 Average 78 | 2 102 18 Influence Increases 668 | 20 530 118 Destroy 0b10 Robot/C 380 | 20 300 60 Destroy 0b10 Robot/NC 30 | . 30 . Destroy Leader 78 | . 58 20 Successful Hack 30 | . 22 8 Disable Machine 45 | . 45 . Destroy Structure 30 | . 30 . Lose Combat Pursuer 75 | . 45 30 Influence Decreases 668 | 20 451 197 Entered New Map 46 | . . 46 Time Decay 582 | 20 441 121 Lost Part 40 | . 10 30 Squads Dispatched 4 | . 2 2 Investigation 2 | . 1 1 Extermination . | . . . Reinforcement 2 | . 1 1 Assault . | . . . Garrison . | . . . Intercept . | . . . Searches Triggered . | . . . Construction Impeded . | . . . Haulers Reinforced . | . . . Active Scanning Responses . | . . . Cargo Convoy Interrupts . | . . . Stealth | -11 -10 -9 --------- Run | Yrd Mat Mat Distress Signals 1 | . . 1 Communications Jammed . | . . . Distress Signals . | . . . Times Spotted 49 | 1 26 22 Peak Tracking Total 16 | 1 6 16 Tactical Retreats 3 | . 2 1 Traps | -11 -10 -9 ------- Run | Yrd Mat Mat Traps Triggered . | . . . Indirectly . | . . . Trap Hack Attempts . | . . . Triggered . | . . . Disarmed . | . . . Reprogrammed . | . . . Reused . | . . . Traps Extracted . | . . . Installed . | . . . Triggered . | . . . Machines | -11 -10 -9 ---------- Run | Yrd Mat Mat Machines Disabled 3 | . 3 . Max in Single Turn 2 | . 2 . Machines Repaired . | . . . Machines Dismantled . | . . . Machines Sabotaged . | . . . Overloaded Fab Kills . | . . . Hacking | -11 -10 -9 --------- Run | Yrd Mat Mat Machines Accessed 10 | . 8 2 Terminals 7 | . 6 1 Fabricators . | . . . Repair Stations . | . . . Recycling Units 2 | . 2 . Scanalyzers 1 | . . 1 Garrison Access . | . . . Total Hacks 33 | . 28 5 Successful 24 | . 20 4 Failed 9 | . 8 1 Catastrophic 1 | . 1 . Database Lockouts . | . . . Manual . | . . . Terminals 19 | . 17 2 Fabricators . | . . . Repair Stations . | . . . Recycling Units 11 | . 11 . Scanalyzers 3 | . . 3 Garrison Access . | . . . Terminal Hacks 12 | . 10 2 Record 9 | . 8 1 Emergency Access Points 1 | . . 1 Alert Level 2 | . 2 . Fabricator Hacks . | . . . Repair Station Hacks . | . . . Recycling Unit Hacks 10 | . 10 . Recycle Component 4 | . 4 . Process 2 | . 2 . Report Inventory 1 | . 1 . Retrieve Matter 3 | . 3 . Scanalyzer 2 | . . 2 Insert Component 1 | . . 1 Retrieve Study 1 | . . 1 Garrison Access Hacks . | . . . Unauthorized Hacks . | . . . Terminals . | . . . Fabricators . | . . . Repair Stations . | . . . Recycling Units . | . . . Scanalyzers . | . . . Garrison Access . | . . . Data Cores Recovered . | . . . Used . | . . . Hacking Detections 7 | . 5 2 Full Trace Events 2 | . 1 1 Feedback Events . | . . . Feedback Blocked . | . . . Robot Schematics Acquired . | . . . Robots Built . | . . . Authchips . | . . . Time . | . . . Total Robot Build Rating . | . . . Part Schematics Acquired . | . . . Parts Built . | . . . Authchips . | . . . Time . | . . . Total Part Build Rating . | . . . Part Studies Acquired 1 | . . 1 Parts Repaired . | . . . Time . | . . . Parts Recycled 4 | . 4 . Recycled Matter 312 | . 312 . Retrieved Matter 120 | . 120 . Retrieved Components . | . . . Parts Scanalyzed . | . . . Part Schematics Acquired . | . . . Parts Damaged . | . . . Bothacking | -11 -10 -9 ------------ Run | Yrd Mat Mat Used RIF Installer . | . . . Robots Hacked . | . . . Non-combat . | . . . Combat . | . . . Robot Hacks Applied . | . . . Relay Couplers Released . | . . . Fabnet Peak Effective % . | . . . Robots Rewired . | . . . Allies Hacked . | . . . Hacks Repelled . | . . . Allies | -11 -10 -9 -------- Run | Yrd Mat Mat Total Allies . | . . . Largest Group . | . . . Highest-Rated Group . | . . . Highest-Rated Ally . | . . . Total Orders . | . . . Ally Attacks . | . . . Total Damage . | . . . Kills . | . . . Allies Corrupted . | . . . Allies Melted . | . . . Intel | -11 -10 -9 ------- Run | Yrd Mat Mat Active Infowar (turns) . | . . . Robot Analysis Total . | . . . Derelict Logs Recovered . | . . . Drone Launches . | . . . Drone Recoveries . | . . . Exploration | -11 -10 -9 ------------- Run | Yrd Mat Mat Turns Passed 1975 | 189 1451 335 Spaces Moved 1304 | 133 1027 144 Core 66 | 25 . 41 Treads 729 | . 626 103 Legs 99 | 85 14 . Wheels 40 | 23 17 . Hover 152 | . 152 . Flight 218 | . 218 . Fastest Speed 37 | 50 37 50 Average Speed 118 | 99 118 140 Slowest Speed 260 | 120 260 160 Overloaded Moves . | . . . Propulsion Burnouts . | . . . Robots Hopped 2 | . 2 . Potential Cave-ins . | . . . Cave-ins Triggered . | . . . Exploration Rate (%) 38 | 9 91 16 Regions Visited 2 Branch Regions . Pre-discovered Areas . | . . . Known Exits Taken 1 | . 1 . Unknown Exits Taken 1 | 1 . . Scrap Searched . | . . . Spaces Dug . | . . . Terrain Destroyed 27 | . 27 . Melee . | . . . Projectile . | . . . AOE 27 | . 27 . Terrain Rammed . | . . . Walls Destroyed . | . . . Machines Disabled . | . . . Actions | -11 -10 -9 --------- Run | Yrd Mat Mat Total 1621 | 182 1207 232 Wait 118 | 26 45 47 Move 1298 | 132 1022 144 Hop 2 | . 2 . Pick Up 36 | 7 29 . Fast Attach . | . . . Attach 21 | 6 14 1 Detach 6 | 2 4 . Swap 11 | . 11 . Drop 22 | . 21 1 Fire 79 | 9 52 18 Melee 17 | . 5 12 Ram 6 | . . 6 Kick . | . . . Crush 1 | . 1 . Escape Stasis . | . . . Rewire . | . . . Trap . | . . . Miscellaneous 4 | . 1 3 Route ------- -11/Scrapyard -10/Materials (discovered 4 exits: *Mat x3 / [*Min]) -9/Materials History --------- Turn | Location | Event 2 | -11/Scrapyard | Met Revision 17 59 | -11/Scrapyard | Discovered new exit (range 8) 190 | -11/Scrapyard | Entered Materials 320 | -10/Materials | Build established: Mutant 412 | -10/Materials | Discovered new exit (range 3) 472 | -10/Materials | Discovered new exit (range 6) 731 | -10/Materials | Discovered new exit (range 8) 744 | -10/Materials | Identified exit to Materials 1031 | -10/Materials | Discovered exit to Materials (range 11) 1641 | -10/Materials | Entered another Materials area 1641 | -9/Materials | Evolved 2 slots: Power x1, Weapon x1 1942 | -9/Materials | Core integrity fell below 50% 1957 | -9/Materials | Lost 3 parts (1p1n1w) 1962 | -9/Materials | Core integrity fell below 20% 1976 | -9/Materials | Core destroyed Last Messages --------------- Sneak attack on A-02 Transporter. Ion Engine destroyed. W-16 Scout sends out distress signal. A-02 Transporter suffers critical hit (Smash). Destroyed Lgt. Treads. A-02 Transporter system corrupted by crushing effect. Hammer destroyed. Slammed into S-10 Pest. [Achievement: For Emergencies Only] O-16 Technician: "IFF HANDSHAKE FAILED. SECURING TERMINAL." Slammed into S-10 Pest. ALERT: Hostiles spotted, dispatching reinforcements to Terminal M008. Slammed into S-10 Pest. Signal Interpreter broken. Destabilizing: Short circuit. Slammed into S-10 Pest. [Achievement: First Step to Greatness] Map ----- +----------------------------------------------------+ | ?????????????????????????????????###=#### """ #?? | | ???????????????????????????????????# #??# #?? | | ???????????????????????????????????# #??# #?? | | ????????????????????????????######## #??##+#####?? | | ????????????????????????????# # #???????????? | | ????????????????????????????# === # ### #???? | | ????????????????????????????# === / | | ????????????????????????????# === # ### #???? | | ????????????????????????????# # #???????????? | | ????????????????????????????# # #???????????? | | ????????????????????????????######## #???????????? | | ??????????????????##+############### #???????????? | | ??????????????????# %%%% #???????????? | | ??????????????????# ################???????????? | | ??????????????????+ #??????????????????????????? | | ??????????????????# #??????????????????????????? | | ??????????????????# #??????????????????????????? | | ??????????????????# #??????????????????????????? | | ??????????????????# #??????????????????????????? | | ??????????????????# ########???????????????????? | | ??????????????????# # #???????????????????? | | ??????????????????# #! """ #???????????????????? | | ??????????????????# # """ #???????????????????? | | ??????????????????# u# """ #???????????????????? | | ??????????????????# ss% s #???????????????????? | | ??????????????????# #s @ #???????????????????? | | ??????????????????# ########???????????????????? | | ??????????????????# #??????????????????????????? | | ??????????????????# #??????????????????????????? | | ??????????????????+ +??????????????????????????? | | ??????????????????# #??????????????????????????? | | ??????????????????# #??????????????????????????? | | ??????????????????# #??????????????????????????? | | ??????????????????# #??????????????????????????? | | ??????????????????# #??????????????????????????? | | ??????????????????# #??????????????????????????? | | ??????????????????# ???????????????????????????? | | ?????????????????? ???????????????????????????? | | ?????????????????? ???????????????????????????? | | ???????????????????T ???????????????????????????? | | ?????????????????????????????????????????????????? | | ?????????????????????????????????????????????????? | | ?????????????????????????????????????????????????? | | ?????????????????????????????????????????????????? | | ?????????????????????????????????????????????????? | | ?????????????????????????????????????????????????? | | ?????????????????????????????????????????????????? | | ?????????????????????????????????????????????????? | | ?????????????????????????????????????????????????? | | ?????????????????????????????????????????????????? | +----------------------------------------------------+ Best States ------------- Heat Dissipation 28 Energy Generation 10 Energy Capacity 250 Matter Stores 300 Matter Capacity 300 Sight Range 16 Terrain Scan Density 10 Evasion (%) 62 Targeting Accuracy 5 Recoil Reduction 2 Item Schematics ----------------- None Robot Schematics ------------------ None Fabricated ------------ Nothing Repaired ---------- Nothing Studied --------- Plasma Cutter | -9/Materials | Hacked Alien Tech Used ----------------- None Achievements -------------- Crack Shot First Step to Greatness For Emergencies Only It's Just You Item+ Loot Pinata Novice Programmer One Hack Too Far Organ Harvest Overwhelming Power Corrupts Storm Trooper Uninvited Guest Universal Adapter Challenges ------------ None Game ------ Seed JunkMobileArticulator Manual? 0 Play Time 00:46:54 Cumulative 0.7 hours Start 2025.10.28 @ 19:53:10 End 2026.01.04 @ 16:45:06 Sessions 3 Manual Loads 0 Difficulty Rogue Special Mode None Game No. 1 Rogue 1 Adventurer 0 Explorer 0 Win Type - Total 0 Types 0/0/0/0/0/0/0/0/0/0 Lore% 0 Gallery% 1 Achievement% 2 Wizard Run 0 Options --------- Layout 1 ASCII 0 Keyboard 0 Movement Numpad Keybinds 0 Fullscreen 1 Font 24/Smallcaps Map View 50x35 Zoom Use 0% Tactical HUD 0 Map Filters NONE Filters NONE Steam 1 RUN: d4751cbb-cf9b-45e0-aa2b-0d53011435a7